[Event "2026 European Womens Championship"]
[Site "Batumi, GE"]
[Date "2026.05.29"]
[Round "5"]
[White "Skvortsova, Alena"]
[Black "Mkrtchyan, Mariam"]
[Result "0-1"]
[Board "74"]
[TimeControl "5400+30"]
[WhiteFideId "24166251"]
[BlackFideId "13310828"]
[WhiteElo "2135"]
[BlackElo "2365"]
[WhiteTitle "WFM"]
[BlackTitle "WGM"]
[WhiteClock "0:01:04"]
[BlackClock "0:21:13"]
[Variant "Standard"]

1. e4 {[%clk 1:30:58]}  e6 {[%clk 1:29:52]} 2. d4 {[%clk 1:28:29]}  d5 {[%clk 1:30:17]} 3. Nd2 {[%clk 1:28:50]}  h6 {[%clk 1:30:26]}
4. Bd3 {[%clk 1:27:13]}  c5 {[%clk 1:30:35]} 5. dxc5 {[%clk 1:26:09]}  Bxc5 {[%clk 1:30:14]} 6. Ngf3 {[%clk 1:26:21]}  Nf6 {[%clk 1:29:11]}
7. Qe2 {[%clk 1:26:36]}  O-O {[%clk 1:24:05]} 8. O-O {[%clk 1:26:41]}  Nc6 {[%clk 1:22:48]} 9. c3 {[%clk 1:26:17]}  a5 {[%clk 1:16:27]}
10. e5 {[%clk 1:22:26]}  Nd7 {[%clk 1:16:38]} 11. Nb3 {[%clk 1:21:53]}  Ba7 {[%clk 1:06:55]} 12. Nbd4 {[%clk 1:12:34]}  Bb8 {[%clk 1:06:44]}
13. Bf4 {[%clk 1:09:26]}  Nc5 {[%clk 1:06:51]} 14. Bc2 {[%clk 0:59:55]}  f5 {[%clk 1:06:33]} 15. h4 {[%clk 0:51:54]}  a4 {[%clk 1:02:52]}
16. Rfd1 {[%clk 0:45:55]}  Ne4 {[%clk 0:56:48]} 17. Qe3 {[%clk 0:40:15]}  Bd7 {[%clk 0:48:56]} 18. g3 {[%clk 0:34:04]}  Na5 {[%clk 0:45:44]}
19. b3 {[%clk 0:31:19]}  Ba7 {[%clk 0:40:18]} 20. Rac1 {[%clk 0:31:16]}  Rc8 {[%clk 0:39:39]} 21. Bxe4 {[%clk 0:29:01]}  fxe4 {[%clk 0:39:16]}
22. Nd2 {[%clk 0:29:25]}  Qe8 {[%clk 0:37:30]} 23. b4 {[%clk 0:16:52]}  Nc4 {[%clk 0:36:40]} 24. Nxc4 {[%clk 0:17:13]}  Rxc4 {[%clk 0:37:06]}
25. a3 {[%clk 0:17:16]}  Qg6 {[%clk 0:34:33]} 26. Qd2 {[%clk 0:15:53]}  Qg4 {[%clk 0:27:28]} 27. Be3 {[%clk 0:11:25]}  Bb8 {[%clk 0:32:14]}
28. Qe2 {[%clk 0:11:27]}  Qxe2 {[%clk 0:31:02]} 29. Nxe2 {[%clk 0:11:53]}  Bxe5 {[%clk 0:31:08]} 30. Bc5 {[%clk 0:09:49]}  Rc8 {[%clk 0:28:17]}
31. Rd2 {[%clk 0:08:02]}  Bf6 {[%clk 0:27:03]} 32. Nd4 {[%clk 0:04:45]}  e5 {[%clk 0:23:48]} 33. Nc2 {[%clk 0:03:50]}  Rxc3 {[%clk 0:23:49]}
34. Rxd5 {[%clk 0:04:01]}  Be6 {[%clk 0:23:35]} 35. Rd2 {[%clk 0:02:00]}  Bb3 {[%clk 0:23:49]} 36. Kf1 {[%clk 0:00:44]}  b6 {[%clk 0:23:29]}
37. Bxb6 {[%clk 0:01:04]}  Bxc2 {[%clk 0:21:13]} 0-1

[Event "2026 European Womens Championship"]
[Site "Batumi, GE"]
[Date "2026.05.29"]
[Round "5"]
[White "Milliet, Sophie"]
[Black "Mamedjarova, Turkan"]
[Result "1-0"]
[Board "75"]
[TimeControl "5400+30"]
[WhiteFideId "623725"]
[BlackFideId "13402005"]
[WhiteElo "2361"]
[BlackElo "2222"]
[WhiteTitle "IM"]
[BlackTitle "WGM"]
[WhiteClock "0:26:47"]
[BlackClock "0:26:25"]
[Variant "Standard"]

1. Nf3 {[%clk 1:30:53]}  Nf6 {[%clk 1:30:51]} 2. c4 {[%clk 1:31:07]}  e6 {[%clk 1:29:21]} 3. g3 {[%clk 1:31:20]}  d5 {[%clk 1:28:19]}
4. Bg2 {[%clk 1:31:45]}  c5 {[%clk 1:23:54]} 5. d4 {[%clk 1:31:57]}  Nc6 {[%clk 1:23:19]} 6. O-O {[%clk 1:31:55]}  Be7 {[%clk 1:18:08]}
7. cxd5 {[%clk 1:30:53]}  exd5 {[%clk 1:17:23]} 8. Nc3 {[%clk 1:30:47]}  c4 {[%clk 1:16:25]} 9. b3 {[%clk 1:28:33]}  cxb3 {[%clk 1:16:31]}
10. Qxb3 {[%clk 1:27:27]}  O-O {[%clk 1:15:04]} 11. Bf4 {[%clk 1:26:36]}  h6 {[%clk 1:07:59]} 12. Rfd1 {[%clk 1:17:47]}  Na5 {[%clk 0:57:25]}
13. Qb1 {[%clk 1:17:55]}  Bd7 {[%clk 0:52:58]} 14. Ne5 {[%clk 1:16:23]}  Be6 {[%clk 0:52:41]} 15. Qd3 {[%clk 1:07:20]}  Rc8 {[%clk 0:50:30]}
16. Rab1 {[%clk 1:07:32]}  a6 {[%clk 0:48:59]} 17. a4 {[%clk 1:02:28]}  Bd6 {[%clk 0:46:35]} 18. Bd2 {[%clk 0:54:55]}  Qc7 {[%clk 0:37:20]}
19. f4 {[%clk 0:54:04]}  g6 {[%clk 0:37:10]} 20. g4 {[%clk 0:51:31]}  Nc4 {[%clk 0:33:41]} 21. Be1 {[%clk 0:47:02]}  Rfd8 {[%clk 0:30:01]}
22. h3 {[%clk 0:36:13]}  h5 {[%clk 0:27:34]} 23. Bh4 {[%clk 0:32:26]}  Be7 {[%clk 0:27:51]} 24. Nxg6 {[%clk 0:32:08]}  fxg6 {[%clk 0:26:05]}
25. Qxg6+ {[%clk 0:32:33]}  Kf8 {[%clk 0:26:17]} 26. Bxf6 {[%clk 0:30:26]}  Bxf6 {[%clk 0:26:23]} 27. Qxf6+ {[%clk 0:30:52]}  Qf7 {[%clk 0:26:25]}
28. Qh8+ {[%clk 0:28:42]}  Qg8 {[%clk 0:26:46]} 29. Qh6+ {[%clk 0:28:57]}  Ke8 {[%clk 0:26:51]} 30. Rxb7 {[%clk 0:27:01]}  Nd6 {[%clk 0:26:25]}
31. Rg7 {[%clk 0:26:47]} 1-0

[Event "2026 European Womens Championship"]
[Site "Batumi, GE"]
[Date "2026.05.29"]
[Round "5"]
[White "Rudzinska, Michalina"]
[Black "Gaponenko, Inna"]
[Result "1/2-1/2"]
[Board "76"]
[TimeControl "5400+30"]
[WhiteFideId "1172883"]
[BlackFideId "14101181"]
[WhiteElo "2200"]
[BlackElo "2331"]
[WhiteTitle "WGM"]
[BlackTitle "IM"]
[WhiteClock "0:00:34"]
[BlackClock "0:07:07"]
[Variant "Standard"]

1. e4 {[%clk 1:30:52]}  c5 {[%clk 1:30:56]} 2. Nf3 {[%clk 1:31:14]}  Nc6 {[%clk 1:31:22]} 3. d4 {[%clk 1:31:24]}  cxd4 {[%clk 1:31:46]}
4. Nxd4 {[%clk 1:31:48]}  Nf6 {[%clk 1:32:11]} 5. Nc3 {[%clk 1:32:05]}  d6 {[%clk 1:32:30]} 6. Bg5 {[%clk 1:31:39]}  e6 {[%clk 1:32:36]}
7. Qd2 {[%clk 1:31:22]}  Be7 {[%clk 1:32:53]} 8. O-O-O {[%clk 1:29:49]}  Nxd4 {[%clk 1:32:08]} 9. Qxd4 {[%clk 1:30:12]}  O-O {[%clk 1:32:34]}
10. f4 {[%clk 1:29:14]}  Qa5 {[%clk 1:30:56]} 11. Kb1 {[%clk 1:25:14]}  Rd8 {[%clk 1:22:31]} 12. Qd2 {[%clk 1:14:08]}  Bd7 {[%clk 1:02:43]}
13. Bd3 {[%clk 1:05:19]}  h6 {[%clk 0:55:17]} 14. h4 {[%clk 1:00:57]}  Kf8 {[%clk 0:32:22]} 15. Qe2 {[%clk 0:38:46]}  Bc6 {[%clk 0:12:10]}
16. e5 {[%clk 0:34:59]}  dxe5 {[%clk 0:11:10]} 17. fxe5 {[%clk 0:35:10]}  hxg5 {[%clk 0:11:10]} 18. hxg5 {[%clk 0:28:56]}  Ng8 {[%clk 0:11:38]}
19. Rdf1 {[%clk 0:27:30]}  Bxg5 {[%clk 0:05:53]} 20. Rh5 {[%clk 0:02:58]}  Bh6 {[%clk 0:05:40]} 21. g4 {[%clk 0:03:08]}  Rac8 {[%clk 0:04:45]}
22. g5 {[%clk 0:03:02]}  Bd5 {[%clk 0:04:59]} 23. gxh6 {[%clk 0:02:22]}  Nxh6 {[%clk 0:04:58]} 24. Rxh6 {[%clk 0:02:16]}  gxh6 {[%clk 0:05:02]}
25. Qh5 {[%clk 0:02:33]}  Rc7 {[%clk 0:04:22]} 26. Qxh6+ {[%clk 0:00:47]}  Ke8 {[%clk 0:03:59]} 27. Bb5+ {[%clk 0:01:08]}  Bc6 {[%clk 0:01:29]}
28. Qh8+ {[%clk 0:01:28]}  Ke7 {[%clk 0:01:57]} 29. Qf6+ {[%clk 0:01:36]}  Ke8 {[%clk 0:02:25]} 30. Qh8+ {[%clk 0:00:51]}  Ke7 {[%clk 0:02:54]}
31. Qf6+ {[%clk 0:01:07]}  Ke8 {[%clk 0:03:23]} 32. Rh1 {[%clk 0:00:39]}  Re7 {[%clk 0:03:42]} 33. Bxc6+ {[%clk 0:00:34]}  bxc6 {[%clk 0:04:11]}
34. Ne4 {[%clk 0:00:37]}  Rd4 {[%clk 0:00:58]} 35. Nd6+ {[%clk 0:00:34]}  Kd7 {[%clk 0:01:17]} 36. Qh8 {[%clk 0:00:33]}  Qd8 {[%clk 0:01:35]}
37. Qh3 {[%clk 0:00:39]}  Kc7 {[%clk 0:00:39]} 38. Qa3 {[%clk 0:00:46]}  Kb8 {[%clk 0:00:57]} 39. Qc5 {[%clk 0:00:36]}  Rd5 {[%clk 0:01:09]}
40. Qb4+ {[%clk 0:00:32]}  Qb6 {[%clk 0:00:40]} 41. Qg4 {[%clk 0:12:46]}  Rd7 {[%clk 0:19:17]} 42. a3 {[%clk 0:11:49]}  Rxe5 {[%clk 0:10:36]}
43. Nc4 {[%clk 0:03:26]}  Qc5 {[%clk 0:10:57]} 44. Qf4 {[%clk 0:02:15]}  f6 {[%clk 0:10:20]} 45. Nxe5 {[%clk 0:02:16]}  Qxe5 {[%clk 0:10:17]}
46. Qxe5+ {[%clk 0:00:34]}  fxe5 {[%clk 0:07:07]} 1/2-1/2

[Event "2026 European Womens Championship"]
[Site "Batumi, GE"]
[Date "2026.05.29"]
[Round "5"]
[White "Khukhashvili, Sopiko"]
[Black "Hryzlova, Sofiia"]
[Result "1-0"]
[Board "77"]
[TimeControl "5400+30"]
[WhiteFideId "13602055"]
[BlackFideId "14174669"]
[WhiteElo "2329"]
[BlackElo "2226"]
[WhiteTitle "IM"]
[BlackTitle "WIM"]
[WhiteClock "0:27:34"]
[BlackClock "0:03:52"]
[Variant "Standard"]

1. e4 {[%clk 1:30:57]}  c5 {[%clk 1:28:48]} 2. Nf3 {[%clk 1:31:17]}  d6 {[%clk 1:28:37]} 3. d4 {[%clk 1:31:39]}  cxd4 {[%clk 1:29:01]}
4. Qxd4 {[%clk 1:32:05]}  Nc6 {[%clk 1:28:33]} 5. Qe3 {[%clk 1:32:30]}  g6 {[%clk 1:28:47]} 6. c4 {[%clk 1:32:37]}  Bg7 {[%clk 1:27:53]}
7. h3 {[%clk 1:32:54]}  Qb6 {[%clk 1:23:21]} 8. Qd2 {[%clk 1:29:52]}  Be6 {[%clk 1:17:16]} 9. Nc3 {[%clk 1:28:48]}  Rc8 {[%clk 1:16:42]}
10. b3 {[%clk 1:23:43]}  Nd4 {[%clk 1:07:45]} 11. Bb2 {[%clk 1:16:32]}  Nxf3+ {[%clk 1:05:49]} 12. gxf3 {[%clk 1:16:59]}  Qa5 {[%clk 0:53:22]}
13. Rd1 {[%clk 1:12:40]}  Bh6 {[%clk 0:43:59]} 14. Qd4 {[%clk 1:07:28]}  Nf6 {[%clk 0:43:20]} 15. h4 {[%clk 1:04:58]}  O-O {[%clk 0:38:43]}
16. h5 {[%clk 0:57:49]}  Nxh5 {[%clk 0:36:06]} 17. Rxh5 {[%clk 0:55:55]}  gxh5 {[%clk 0:36:18]} 18. Ke2 {[%clk 0:53:13]}  Bg7 {[%clk 0:31:00]}
19. Qd2 {[%clk 0:52:12]}  h6 {[%clk 0:28:45]} 20. f4 {[%clk 0:50:49]}  Bd7 {[%clk 0:17:16]} 21. f5 {[%clk 0:46:55]}  Qe5 {[%clk 0:15:29]}
22. Bh3 {[%clk 0:44:47]}  Qh2 {[%clk 0:13:38]} 23. Nd5 {[%clk 0:38:50]}  Bxb2 {[%clk 0:09:16]} 24. Qxh6 {[%clk 0:32:31]}  Rfe8 {[%clk 0:08:14]}
25. f6 {[%clk 0:32:56]}  exf6 {[%clk 0:08:12]} 26. Bxd7 {[%clk 0:33:11]}  Qg2 {[%clk 0:04:02]} 27. Bxc8 {[%clk 0:28:22]}  Rxe4+ {[%clk 0:02:23]}
28. Ne3 {[%clk 0:28:28]}  Qg5 {[%clk 0:00:59]} 29. Qxg5+ {[%clk 0:28:21]}  fxg5 {[%clk 0:01:27]} 30. Rxd6 {[%clk 0:28:32]}  b6 {[%clk 0:01:31]}
31. Rd8+ {[%clk 0:26:57]}  Kg7 {[%clk 0:01:56]} 32. Kd3 {[%clk 0:27:08]}  Rf4 {[%clk 0:02:15]} 33. Nf5+ {[%clk 0:26:53]}  Kf6 {[%clk 0:02:16]}
34. Rd6+ {[%clk 0:26:23]}  Ke5 {[%clk 0:02:42]} 35. Rd5+ {[%clk 0:26:48]}  Kf6 {[%clk 0:03:08]} 36. Ng3 {[%clk 0:27:03]}  Kg6 {[%clk 0:03:09]}
37. Bf5+ {[%clk 0:27:01]}  Kh6 {[%clk 0:03:32]} 38. Rd6+ {[%clk 0:27:24]}  f6 {[%clk 0:03:52]} 39. Rd7 {[%clk 0:27:34]} 1-0

[Event "2026 European Womens Championship"]
[Site "Batumi, GE"]
[Date "2026.05.29"]
[Round "5"]
[White "Ismayil, Malak"]
[Black "Mammadova, Gulnar"]
[Result "1/2-1/2"]
[Board "78"]
[TimeControl "5400+30"]
[WhiteFideId "13412604"]
[BlackFideId "13403508"]
[WhiteElo "2122"]
[BlackElo "2325"]
[WhiteTitle "WIM"]
[BlackTitle "IM"]
[WhiteClock "0:19:45"]
[BlackClock "0:34:08"]
[Variant "Standard"]

1. d4 {[%clk 1:30:53]}  Nf6 {[%clk 1:30:46]} 2. Nc3 {[%clk 1:31:13]}  d5 {[%clk 1:30:36]} 3. Bf4 {[%clk 1:31:39]}  c5 {[%clk 1:30:38]}
4. e3 {[%clk 1:32:03]}  cxd4 {[%clk 1:30:30]} 5. exd4 {[%clk 1:32:30]}  Bg4 {[%clk 1:30:45]} 6. f3 {[%clk 1:32:34]}  Bd7 {[%clk 1:30:19]}
7. Nb5 {[%clk 1:32:27]}  Bxb5 {[%clk 1:29:39]} 8. Bxb5+ {[%clk 1:32:52]}  Nc6 {[%clk 1:30:02]} 9. c3 {[%clk 1:27:26]}  e6 {[%clk 1:27:58]}
10. Ne2 {[%clk 1:27:22]}  Bd6 {[%clk 1:27:19]} 11. O-O {[%clk 1:27:14]}  O-O {[%clk 1:25:41]} 12. Qd2 {[%clk 1:12:32]}  Ne7 {[%clk 1:21:08]}
13. Bd3 {[%clk 1:07:27]}  a5 {[%clk 1:13:40]} 14. a4 {[%clk 0:56:55]}  Qb6 {[%clk 1:09:05]} 15. Bg5 {[%clk 0:53:11]}  Nd7 {[%clk 1:05:41]}
16. Kh1 {[%clk 0:51:47]}  f6 {[%clk 1:02:47]} 17. Bh4 {[%clk 0:51:22]}  Ng6 {[%clk 1:00:57]} 18. Bg3 {[%clk 0:50:03]}  f5 {[%clk 0:56:34]}
19. Bb5 {[%clk 0:46:22]}  Nf6 {[%clk 0:55:34]} 20. Bxd6 {[%clk 0:40:53]}  Qxd6 {[%clk 0:56:02]} 21. Rae1 {[%clk 0:41:11]}  Ne8 {[%clk 0:53:29]}
22. Nc1 {[%clk 0:33:08]}  Nc7 {[%clk 0:53:26]} 23. Nd3 {[%clk 0:29:55]}  b6 {[%clk 0:47:09]} 24. Ne5 {[%clk 0:24:29]}  Nxe5 {[%clk 0:43:48]}
25. Rxe5 {[%clk 0:24:55]}  Nxb5 {[%clk 0:39:00]} 26. axb5 {[%clk 0:25:20]}  a4 {[%clk 0:38:56]} 27. Qe2 {[%clk 0:23:45]}  Rf6 {[%clk 0:39:06]}
28. Re1 {[%clk 0:21:54]}  a3 {[%clk 0:35:22]} 29. bxa3 {[%clk 0:22:15]}  Rxa3 {[%clk 0:35:41]} 30. h3 {[%clk 0:18:09]}  Rxc3 {[%clk 0:32:52]}
31. Rxe6 {[%clk 0:18:25]}  Rxe6 {[%clk 0:33:02]} 32. Qxe6+ {[%clk 0:18:51]}  Qxe6 {[%clk 0:33:28]} 33. Rxe6 {[%clk 0:19:18]}  Rc4 {[%clk 0:33:43]}
34. Rxb6 {[%clk 0:19:45]}  Rxd4 {[%clk 0:34:08]} 1/2-1/2

[Event "2026 European Womens Championship"]
[Site "Batumi, GE"]
[Date "2026.05.29"]
[Round "5"]
[White "Avramidou, Anastasia"]
[Black "Tirpan, Ceren"]
[Result "1/2-1/2"]
[Board "79"]
[TimeControl "5400+30"]
[WhiteFideId "4239873"]
[BlackFideId "26385309"]
[WhiteElo "2320"]
[BlackElo "2209"]
[WhiteTitle "FM"]
[BlackTitle "WFM"]
[WhiteClock "0:08:17"]
[BlackClock "0:03:54"]
[Variant "Standard"]

1. e4 {[%clk 1:30:56]}  c5 {[%clk 1:30:55]} 2. Nf3 {[%clk 1:31:21]}  Nc6 {[%clk 1:31:21]} 3. d4 {[%clk 1:31:43]}  cxd4 {[%clk 1:31:47]}
4. Nxd4 {[%clk 1:32:07]}  e6 {[%clk 1:32:13]} 5. Nc3 {[%clk 1:32:03]}  Qc7 {[%clk 1:32:37]} 6. Be3 {[%clk 1:32:17]}  a6 {[%clk 1:32:58]}
7. Qf3 {[%clk 1:32:29]}  b5 {[%clk 1:31:45]} 8. O-O-O {[%clk 1:30:09]}  Bb7 {[%clk 1:27:07]} 9. Nxc6 {[%clk 1:06:57]}  Qxc6 {[%clk 1:22:49]}
10. Bd3 {[%clk 1:06:55]}  Nf6 {[%clk 1:22:39]} 11. e5 {[%clk 0:51:48]}  Qxf3 {[%clk 1:08:32]} 12. gxf3 {[%clk 0:52:10]}  Nd5 {[%clk 0:59:19]}
13. Nxd5 {[%clk 0:47:51]}  Bxd5 {[%clk 0:51:46]} 14. Be4 {[%clk 0:48:14]}  Bxe4 {[%clk 0:51:38]} 15. fxe4 {[%clk 0:48:38]}  Rc8 {[%clk 0:36:24]}
16. Rhg1 {[%clk 0:43:11]}  Rc4 {[%clk 0:29:13]} 17. f3 {[%clk 0:39:20]}  f6 {[%clk 0:25:55]} 18. exf6 {[%clk 0:29:16]}  gxf6 {[%clk 0:26:19]}
19. Rg2 {[%clk 0:29:42]}  d6 {[%clk 0:23:40]} 20. Kd2 {[%clk 0:25:28]}  Kf7 {[%clk 0:22:20]} 21. Rdg1 {[%clk 0:24:35]}  Rc8 {[%clk 0:18:10]}
22. Kd1 {[%clk 0:20:55]}  Rd8 {[%clk 0:17:13]} 23. Ke2 {[%clk 0:20:49]}  Rc8 {[%clk 0:11:40]} 24. c3 {[%clk 0:20:37]}  a5 {[%clk 0:12:05]}
25. Kd3 {[%clk 0:16:57]}  d5 {[%clk 0:11:07]} 26. Bb6 {[%clk 0:15:31]}  dxe4+ {[%clk 0:11:14]} 27. fxe4 {[%clk 0:15:56]}  a4 {[%clk 0:11:28]}
28. Be3 {[%clk 0:16:09]}  e5 {[%clk 0:10:58]} 29. b3 {[%clk 0:14:27]}  Be7 {[%clk 0:10:03]} 30. Rg7+ {[%clk 0:11:26]}  Ke6 {[%clk 0:10:28]}
31. Rc1 {[%clk 0:11:51]}  Rhd8+ {[%clk 0:10:01]} 32. Ke2 {[%clk 0:12:17]}  Rg8 {[%clk 0:09:54]} 33. Rg3 {[%clk 0:10:41]}  Rxg3 {[%clk 0:07:08]}
34. hxg3 {[%clk 0:11:05]}  axb3 {[%clk 0:07:31]} 35. axb3 {[%clk 0:11:26]}  Rg8 {[%clk 0:07:47]} 36. Bf2 {[%clk 0:10:10]}  Ra8 {[%clk 0:07:17]}
37. c4 {[%clk 0:08:20]}  Ra2+ {[%clk 0:07:03]} 38. Kf1 {[%clk 0:08:46]}  Ba3 {[%clk 0:05:56]} 39. Rc3 {[%clk 0:05:08]}  Bb4 {[%clk 0:04:52]}
40. Rc1 {[%clk 0:03:06]}  Bd2 {[%clk 0:01:39]} 41. Rd1 {[%clk 0:01:28]}  bxc4 {[%clk 0:01:10]} 42. bxc4 {[%clk 0:30:23]}  Rc2 {[%clk 0:27:56]}
43. c5 {[%clk 0:27:13]}  f5 {[%clk 0:23:24]} 44. exf5+ {[%clk 0:25:56]}  Kxf5 {[%clk 0:23:46]} 45. Rb1 {[%clk 0:19:10]}  e4 {[%clk 0:17:40]}
46. Rb3 {[%clk 0:19:34]}  Kg4 {[%clk 0:14:37]} 47. Bd4 {[%clk 0:14:51]}  Rc4 {[%clk 0:13:09]} 48. Bf2 {[%clk 0:13:47]}  Bb4 {[%clk 0:11:17]}
49. c6 {[%clk 0:13:09]}  Bc3 {[%clk 0:04:19]} 50. Rb7 {[%clk 0:05:33]}  Rxc6 {[%clk 0:04:14]} 51. Rxh7 {[%clk 0:05:59]}  Kf3 {[%clk 0:04:27]}
52. g4 {[%clk 0:05:52]}  Be5 {[%clk 0:01:34]} 53. Rh3+ {[%clk 0:06:00]}  Kxg4 {[%clk 0:01:57]} 54. Rh4+ {[%clk 0:06:12]}  Kf5 {[%clk 0:01:50]}
55. Rh5+ {[%clk 0:06:26]}  Ke6 {[%clk 0:02:14]} 56. Rh6+ {[%clk 0:06:45]}  Kd5 {[%clk 0:02:36]} 57. Rxc6 {[%clk 0:07:09]}  Kxc6 {[%clk 0:03:03]}
58. Ke2 {[%clk 0:07:33]}  Kd5 {[%clk 0:03:30]} 59. Be3 {[%clk 0:07:54]}  Bd4 {[%clk 0:03:54]} 60. Bg5 {[%clk 0:08:17]} 1/2-1/2

[Event "2026 European Womens Championship"]
[Site "Batumi, GE"]
[Date "2026.05.29"]
[Round "5"]
[White "Krasteva, Beloslava"]
[Black "Olde, Margareth"]
[Result "1-0"]
[Board "80"]
[TimeControl "5400+30"]
[WhiteFideId "2922029"]
[BlackFideId "4503082"]
[WhiteElo "2285"]
[BlackElo "2194"]
[WhiteTitle "WGM"]
[BlackTitle "WIM"]
[WhiteClock "0:15:49"]
[BlackClock "0:01:51"]
[Variant "Standard"]

1. Nf3 {[%clk 1:29:33]}  Nf6 {[%clk 1:30:43]} 2. g3 {[%clk 1:29:54]}  d5 {[%clk 1:28:34]} 3. Bg2 {[%clk 1:30:05]}  c5 {[%clk 1:28:46]}
4. O-O {[%clk 1:30:26]}  Nc6 {[%clk 1:28:55]} 5. d3 {[%clk 1:30:41]}  e5 {[%clk 1:26:58]} 6. e4 {[%clk 1:30:40]}  d4 {[%clk 1:05:01]}
7. a4 {[%clk 1:30:59]}  h6 {[%clk 1:02:48]} 8. Na3 {[%clk 1:30:54]}  Be6 {[%clk 0:54:15]} 9. Nh4 {[%clk 1:31:06]}  Nd7 {[%clk 0:49:45]}
10. Qe1 {[%clk 1:30:35]}  Be7 {[%clk 0:38:56]} 11. Nf5 {[%clk 1:29:59]}  Bxf5 {[%clk 0:39:13]} 12. exf5 {[%clk 1:30:20]}  O-O {[%clk 0:38:52]}
13. h4 {[%clk 1:17:34]}  Re8 {[%clk 0:37:12]} 14. Nc4 {[%clk 1:12:18]}  Nf6 {[%clk 0:34:56]} 15. a5 {[%clk 1:07:40]}  Rc8 {[%clk 0:33:18]}
16. Qd1 {[%clk 1:04:24]}  Bf8 {[%clk 0:27:56]} 17. Re1 {[%clk 1:01:23]}  Nd5 {[%clk 0:19:30]} 18. Bd2 {[%clk 0:58:21]}  Ndb4 {[%clk 0:16:50]}
19. Rc1 {[%clk 0:36:59]}  Na2 {[%clk 0:14:12]} 20. Ra1 {[%clk 0:32:10]}  Nab4 {[%clk 0:14:36]} 21. Rc1 {[%clk 0:26:19]}  Na2 {[%clk 0:13:28]}
22. Bxc6 {[%clk 0:26:35]}  Rxc6 {[%clk 0:13:32]} 23. Ra1 {[%clk 0:26:26]}  Nb4 {[%clk 0:13:57]} 24. Nxe5 {[%clk 0:26:13]}  Rf6 {[%clk 0:09:04]}
25. Ng4 {[%clk 0:25:28]}  Rxf5 {[%clk 0:08:14]} 26. Nxh6+ {[%clk 0:21:03]}  gxh6 {[%clk 0:07:14]} 27. Qg4+ {[%clk 0:21:25]}  Bg7 {[%clk 0:01:03]}
28. Qxf5 {[%clk 0:15:12]}  Nxc2 {[%clk 0:01:19]} 29. Rxe8+ {[%clk 0:15:29]}  Qxe8 {[%clk 0:01:47]} 30. Rc1 {[%clk 0:15:32]}  Qe2 {[%clk 0:02:06]}
31. Qxc5 {[%clk 0:15:26]}  Qxd2 {[%clk 0:01:01]} 32. Qxc2 {[%clk 0:15:42]}  Qxa5 {[%clk 0:01:25]} 33. Qc8+ {[%clk 0:15:56]}  Kh7 {[%clk 0:01:42]}
34. Qxb7 {[%clk 0:16:05]}  f5 {[%clk 0:01:03]} 35. Rc7 {[%clk 0:15:36]}  Qe1+ {[%clk 0:01:27]} 36. Kg2 {[%clk 0:16:00]}  Qe5 {[%clk 0:01:51]}
37. Qxa7 {[%clk 0:15:49]} 1-0

[Event "2026 European Womens Championship"]
[Site "Batumi, GE"]
[Date "2026.05.29"]
[Round "5"]
[White "Schneider, Jana"]
[Black "Liavonava, Yuliya"]
[Result "1-0"]
[Board "81"]
[TimeControl "5400+30"]
[WhiteFideId "12924997"]
[BlackFideId "13524178"]
[WhiteElo "2283"]
[BlackElo "2118"]
[WhiteTitle "WGM"]
[BlackTitle "WFM"]
[WhiteClock "0:14:14"]
[BlackClock "0:01:49"]
[Variant "Standard"]

1. e4 {[%clk 1:30:56]}  c5 {[%clk 1:30:56]} 2. Nf3 {[%clk 1:31:18]}  d6 {[%clk 1:31:23]} 3. Bb5+ {[%clk 1:31:40]}  Nd7 {[%clk 1:31:42]}
4. O-O {[%clk 1:31:58]}  a6 {[%clk 1:31:17]} 5. Be2 {[%clk 1:32:18]}  Ngf6 {[%clk 1:30:11]} 6. d3 {[%clk 1:32:29]}  g6 {[%clk 1:27:38]}
7. c4 {[%clk 1:32:41]}  Bg7 {[%clk 1:27:58]} 8. Nc3 {[%clk 1:33:00]}  O-O {[%clk 1:19:35]} 9. d4 {[%clk 1:32:02]}  cxd4 {[%clk 1:19:59]}
10. Nxd4 {[%clk 1:32:24]}  Nc5 {[%clk 1:19:52]} 11. f3 {[%clk 1:32:21]}  h5 {[%clk 1:18:04]} 12. Be3 {[%clk 1:29:43]}  h4 {[%clk 1:11:35]}
13. h3 {[%clk 1:25:07]}  Nh5 {[%clk 1:00:52]} 14. Qd2 {[%clk 1:19:53]}  e5 {[%clk 0:59:26]} 15. Nc2 {[%clk 1:15:12]}  Ne6 {[%clk 0:58:06]}
16. Rfd1 {[%clk 1:07:05]}  Nef4 {[%clk 0:57:57]} 17. Bf1 {[%clk 1:00:25]}  Qg5 {[%clk 0:47:47]} 18. Kh1 {[%clk 0:57:57]}  Be6 {[%clk 0:41:54]}
19. b3 {[%clk 0:57:17]}  Bh6 {[%clk 0:38:39]} 20. Ne2 {[%clk 0:50:47]}  Qf6 {[%clk 0:32:34]} 21. Nxf4 {[%clk 0:48:33]}  Nxf4 {[%clk 0:32:31]}
22. Qf2 {[%clk 0:47:16]}  Rad8 {[%clk 0:28:34]} 23. Nb4 {[%clk 0:44:45]}  Kh7 {[%clk 0:20:50]} 24. Rd2 {[%clk 0:40:40]}  Nh5 {[%clk 0:20:22]}
25. Bxh6 {[%clk 0:40:25]}  Kxh6 {[%clk 0:20:50]} 26. Qe3+ {[%clk 0:39:07]}  Kh7 {[%clk 0:19:13]} 27. Rad1 {[%clk 0:39:04]}  Qe7 {[%clk 0:16:20]}
28. Qb6 {[%clk 0:35:33]}  Ng3+ {[%clk 0:16:21]} 29. Kg1 {[%clk 0:30:57]}  Qg5 {[%clk 0:16:09]} 30. Rxd6 {[%clk 0:29:29]}  Rxd6 {[%clk 0:16:30]}
31. Qxd6 {[%clk 0:24:33]}  Nh5 {[%clk 0:03:27]} 32. Qxf8 {[%clk 0:18:54]}  Qe3+ {[%clk 0:02:57]} 33. Kh1 {[%clk 0:18:27]}  Ng3+ {[%clk 0:02:41]}
34. Kh2 {[%clk 0:18:55]}  Qf4 {[%clk 0:02:46]} 35. Nd3 {[%clk 0:18:45]}  Qg5 {[%clk 0:01:16]} 36. Qc5 {[%clk 0:16:54]}  Bxh3 {[%clk 0:01:03]}
37. Qf2 {[%clk 0:16:37]}  Bc8 {[%clk 0:01:07]} 38. f4 {[%clk 0:14:09]}  Qh5 {[%clk 0:01:10]} 39. Re1 {[%clk 0:14:11]}  Nxf1+ {[%clk 0:01:22]}
40. Qxf1 {[%clk 0:14:05]}  h3 {[%clk 0:01:49]} 41. gxh3 {[%clk 0:14:14]} 1-0